[Event "Titled Tuesday Blitz May 9 Early 2023"]
[White "Thomas, Anysia"]
[Black "brm72"]
[WhiteFideId "670472"]
[WhiteElo "2091"]
[BlackElo "2582"]
[Result "0-1"]
[Round "01"]
[TimeControl "180+2"]
[Date "2023.05.09"]
[WhiteClock "0:00:05"]
[BlackClock "0:00:05"]

1. d4 {[%clk 0:02:58]}  Nf6 {[%clk 0:02:59]} 2. c4 {[%clk 0:02:49]}  e6 {[%clk 0:02:59]} 3. Nf3 {[%clk 0:02:47]}  b6 {[%clk 0:02:41]} 4. g3 {[%clk 0:02:41]}  Bb7 {[%clk 0:02:39]} 5. Bg2 {[%clk 0:02:41]}  Be7 {[%clk 0:02:40]} 6. O-O {[%clk 0:02:41]}  O-O {[%clk 0:02:40]} 7. d5 {[%clk 0:02:41]}  exd5 {[%clk 0:02:16]} 8. Nh4 {[%clk 0:02:39]}  c6 {[%clk 0:02:12]} 9. cxd5 {[%clk 0:02:27]}  Nxd5 {[%clk 0:02:10]} 10. Nf5 {[%clk 0:02:26]}  Nc7 {[%clk 0:02:01]} 11. Nc3 {[%clk 0:02:23]}  d5 {[%clk 0:01:59]} 12. e4 {[%clk 0:02:23]}  Bf6 {[%clk 0:01:26]} 13. Re1 {[%clk 0:01:51]}  d4 {[%clk 0:01:06]} 14. e5 {[%clk 0:01:05]}  dxc3 {[%clk 0:00:48]} 15. Qg4 {[%clk 0:01:02]}  Ne6 {[%clk 0:00:38]} 16. exf6 {[%clk 0:00:59]}  Qxf6 {[%clk 0:00:39]} 17. bxc3 {[%clk 0:00:58]}  Nd7 {[%clk 0:00:31]} 18. Ba3 {[%clk 0:00:57]}  Rfe8 {[%clk 0:00:29]} 19. Nd6 {[%clk 0:00:56]}  Rab8 {[%clk 0:00:20]} 20. Nxb7 {[%clk 0:00:37]}  Rxb7 {[%clk 0:00:21]} 21. Bxc6 {[%clk 0:00:37]}  Rc7 {[%clk 0:00:21]} 22. Bb5 {[%clk 0:00:35]}  Rec8 {[%clk 0:00:19]} 23. Rad1 {[%clk 0:00:34]}  Ne5 {[%clk 0:00:18]} 24. Qe4 {[%clk 0:00:33]}  Nf3+ {[%clk 0:00:18]} 25. Kg2 {[%clk 0:00:32]}  Nxe1+ {[%clk 0:00:18]} 26. Rxe1 {[%clk 0:00:30]}  h6 {[%clk 0:00:19]} 27. c4 {[%clk 0:00:29]}  Nc5 {[%clk 0:00:18]} 28. Qe3 {[%clk 0:00:26]}  Ne6 {[%clk 0:00:18]} 29. Bb4 {[%clk 0:00:26]}  Qf5 {[%clk 0:00:16]} 30. Bc3 {[%clk 0:00:24]}  Ng5 {[%clk 0:00:15]} 31. f4 {[%clk 0:00:21]}  Qh3+ {[%clk 0:00:13]} 32. Kg1 {[%clk 0:00:21]}  Ne6 {[%clk 0:00:14]} 33. Qe5 {[%clk 0:00:21]}  Rc5 {[%clk 0:00:14]} 34. Qe3 {[%clk 0:00:18]}  Rd8 {[%clk 0:00:14]} 35. Bb4 {[%clk 0:00:17]}  Rh5 {[%clk 0:00:12]} 36. Qf2 {[%clk 0:00:15]}  Nd4 {[%clk 0:00:12]} 37. Be7 {[%clk 0:00:13]}  Nf3+ {[%clk 0:00:06]} 38. Qxf3 {[%clk 0:00:12]}  Qxh2+ {[%clk 0:00:06]} 39. Kf1 {[%clk 0:00:13]}  Rd2 {[%clk 0:00:07]} 40. Bc5 {[%clk 0:00:03]}  Qh1+ {[%clk 0:00:04]} 41. Qxh1 {[%clk 0:00:02]}  Rxh1+ {[%clk 0:00:05]} 42. Bg1 {[%clk 0:00:02]}  Rxa2 {[%clk 0:00:06]} 43. Bc6 {[%clk 0:00:01]}  Rh5 {[%clk 0:00:05]} 44. Re8+ {[%clk 0:00:01]}  Kh7 {[%clk 0:00:05]} 45. Be4+ {[%clk 0:00:02]}  g6 {[%clk 0:00:05]} 46. Bd4 {[%clk 0:00:02]}  Re5 {[%clk 0:00:02]} 47. Bxe5 {[%clk 0:00:01]}  f6 {[%clk 0:00:01]} 48. Rh8+ {[%clk 0:00:02]}  Kxh8 {[%clk 0:00:01]} 49. Bxf6+ {[%clk 0:00:03]}  Kg8 {[%clk 0:00:02]} 50. Be5 {[%clk 0:00:03]}  Kf7 {[%clk 0:00:02]} 51. Bxg6+ {[%clk 0:00:04]}  Kxg6 {[%clk 0:00:02]} 52. Kg1 {[%clk 0:00:04]}  Kf5 {[%clk 0:00:03]} 53. Bg7 {[%clk 0:00:04]}  Kg4 {[%clk 0:00:04]} 54. Bxh6 {[%clk 0:00:04]}  Kxg3 {[%clk 0:00:04]} 55. Bg5 {[%clk 0:00:05]}  Ra1# {[%clk 0:00:05]} 0-1


[Site "https://www.chess.com"]

[Event "Titled Tuesday Blitz May 9 Early 2023"]
[White "Ingebretsen, Jens E"]
[Black "Bueno, Alfeu Junior Varela"]
[WhiteFideId "1522965"]
[BlackFideId "2108879"]
[WhiteElo "2213"]
[BlackElo "2175"]
[Result "1-0"]
[Round "01"]
[TimeControl "180+2"]
[Date "2023.05.09"]
[WhiteClock "0:00:34"]
[BlackClock "0:00:00"]

1. d4 {[%clk 0:03:00]}  e6 {[%clk 0:03:00]} 2. e3 {[%clk 0:03:00]}  f5 {[%clk 0:03:01]} 3. c3 {[%clk 0:03:01]}  b6 {[%clk 0:03:01]} 4. Bd3 {[%clk 0:03:01]}  Bb7 {[%clk 0:03:02]} 5. f3 {[%clk 0:03:01]}  Nf6 {[%clk 0:03:03]} 6. Ne2 {[%clk 0:03:02]}  Be7 {[%clk 0:03:03]} 7. O-O {[%clk 0:03:02]}  O-O {[%clk 0:03:04]} 8. b3 {[%clk 0:03:02]}  d6 {[%clk 0:03:03]} 9. Nd2 {[%clk 0:03:02]}  Qe8 {[%clk 0:03:00]} 10. Bb2 {[%clk 0:03:00]}  Nbd7 {[%clk 0:03:00]} 11. Bc4 {[%clk 0:02:56]}  Nd5 {[%clk 0:02:49]} 12. Bxd5 {[%clk 0:02:48]}  Bxd5 {[%clk 0:02:40]} 13. c4 {[%clk 0:02:46]}  Bb7 {[%clk 0:02:40]} 14. Nf4 {[%clk 0:02:38]}  Bf6 {[%clk 0:02:39]} 15. Qe2 {[%clk 0:02:33]}  e5 {[%clk 0:02:32]} 16. dxe5 {[%clk 0:02:33]}  Bxe5 {[%clk 0:02:29]} 17. Bxe5 {[%clk 0:02:30]}  Qxe5 {[%clk 0:02:29]} 18. Nd3 {[%clk 0:02:24]}  Qe7 {[%clk 0:02:25]} 19. Rae1 {[%clk 0:02:16]}  Rae8 {[%clk 0:02:26]} 20. Qf2 {[%clk 0:02:16]}  Nf6 {[%clk 0:02:18]} 21. Nf4 {[%clk 0:02:12]}  Qe5 {[%clk 0:02:13]} 22. Nb1 {[%clk 0:02:12]}  Re7 {[%clk 0:02:10]} 23. Qd2 {[%clk 0:02:12]}  Rfe8 {[%clk 0:02:10]} 24. Nc3 {[%clk 0:02:13]}  Qa5 {[%clk 0:02:02]} 25. Nd3 {[%clk 0:02:04]}  c5 {[%clk 0:01:24]} 26. Nf4 {[%clk 0:01:49]}  Re5 {[%clk 0:01:13]} 27. Re2 {[%clk 0:01:19]}  a6 {[%clk 0:00:42]} 28. Rfe1 {[%clk 0:01:14]}  b5 {[%clk 0:00:40]} 29. Ncd5 {[%clk 0:01:12]}  Qxd2 {[%clk 0:00:39]} 30. Rxd2 {[%clk 0:01:13]}  Nxd5 {[%clk 0:00:39]} 31. Nxd5 {[%clk 0:01:08]}  Bxd5 {[%clk 0:00:39]} 32. Rxd5 {[%clk 0:01:09]}  Rxd5 {[%clk 0:00:34]} 33. cxd5 {[%clk 0:01:10]}  Kf7 {[%clk 0:00:21]} 34. Kf2 {[%clk 0:01:08]}  Ra8 {[%clk 0:00:19]} 35. a4 {[%clk 0:01:08]}  bxa4 {[%clk 0:00:19]} 36. bxa4 {[%clk 0:01:08]}  Rb8 {[%clk 0:00:20]} 37. Kg3 {[%clk 0:01:06]}  Rb4 {[%clk 0:00:14]} 38. Ra1 {[%clk 0:00:49]}  Kf6 {[%clk 0:00:14]} 39. f4 {[%clk 0:00:49]}  h6 {[%clk 0:00:12]} 40. h4 {[%clk 0:00:47]}  g5 {[%clk 0:00:10]} 41. hxg5+ {[%clk 0:00:43]}  hxg5 {[%clk 0:00:11]} 42. a5 {[%clk 0:00:40]}  c4 {[%clk 0:00:04]} 43. Rh1 {[%clk 0:00:34]}  gxf4+ {[%clk 0:00:00]} 44. exf4 {[%clk 0:00:34]} 1-0


[Site "https://www.chess.com"]

[Event "Titled Tuesday Blitz May 9 Early 2023"]
[White "Orzech, Dominik"]
[Black "Taboas Rodriguez, Daniel"]
[WhiteFideId "1115065"]
[BlackFideId "2208466"]
[WhiteElo "2260"]
[BlackElo "2365"]
[Result "1-0"]
[Round "01"]
[TimeControl "180+2"]
[Date "2023.05.09"]
[WhiteClock "0:00:45"]
[BlackClock "0:00:00"]

1. d4 {[%clk 0:02:49]}  Nf6 {[%clk 0:02:59]} 2. Nf3 {[%clk 0:02:49]}  g6 {[%clk 0:02:59]} 3. c4 {[%clk 0:02:49]}  Bg7 {[%clk 0:02:59]} 4. g3 {[%clk 0:02:49]}  b6 {[%clk 0:02:59]} 5. Bg2 {[%clk 0:02:49]}  Bb7 {[%clk 0:03:00]} 6. O-O {[%clk 0:02:48]}  O-O {[%clk 0:03:01]} 7. Qc2 {[%clk 0:02:49]}  c5 {[%clk 0:02:58]} 8. d5 {[%clk 0:02:48]}  b5 {[%clk 0:02:59]} 9. e4 {[%clk 0:02:48]}  bxc4 {[%clk 0:02:58]} 10. Nbd2 {[%clk 0:02:47]}  d6 {[%clk 0:02:56]} 11. Re1 {[%clk 0:02:45]}  Na6 {[%clk 0:02:54]} 12. a3 {[%clk 0:02:44]}  Nc7 {[%clk 0:02:49]} 13. Nxc4 {[%clk 0:02:44]}  Rb8 {[%clk 0:02:39]} 14. Bf4 {[%clk 0:02:36]}  Nh5 {[%clk 0:02:34]} 15. Bd2 {[%clk 0:02:34]}  Ba6 {[%clk 0:02:29]} 16. Na5 {[%clk 0:02:28]}  Rxb2 {[%clk 0:02:20]} 17. Qc1 {[%clk 0:02:28]}  Bd3 {[%clk 0:02:06]} 18. e5 {[%clk 0:02:23]}  Rc2 {[%clk 0:02:06]} 19. Qd1 {[%clk 0:02:18]}  Nxd5 {[%clk 0:02:01]} 20. Nc6 {[%clk 0:02:18]}  Qc7 {[%clk 0:01:57]} 21. Ba5 {[%clk 0:01:57]}  Qxc6 {[%clk 0:01:55]} 22. Qxd3 {[%clk 0:01:57]}  Rb2 {[%clk 0:01:41]} 23. exd6 {[%clk 0:01:57]}  Qxd6 {[%clk 0:01:34]} 24. Ng5 {[%clk 0:01:55]}  Nb6 {[%clk 0:01:29]} 25. Qf3 {[%clk 0:01:51]}  Bd4 {[%clk 0:01:24]} 26. Rad1 {[%clk 0:01:43]}  Nc4 {[%clk 0:01:04]} 27. Bc3 {[%clk 0:01:33]}  Rxf2 {[%clk 0:00:59]} 28. Rxd4 {[%clk 0:01:29]}  Rxg2+ {[%clk 0:00:40]} 29. Kxg2 {[%clk 0:01:21]}  cxd4 {[%clk 0:00:41]} 30. Bb4 {[%clk 0:01:19]}  Qf6 {[%clk 0:00:22]} 31. Qxf6 {[%clk 0:01:18]}  Nxf6 {[%clk 0:00:22]} 32. Rxe7 {[%clk 0:01:13]}  d3 {[%clk 0:00:18]} 33. Rxa7 {[%clk 0:01:11]}  Rd8 {[%clk 0:00:17]} 34. Nxf7 {[%clk 0:01:10]}  Rd7 {[%clk 0:00:16]} 35. Nh6+ {[%clk 0:01:07]}  Kg7 {[%clk 0:00:16]} 36. Rxd7+ {[%clk 0:01:03]}  Nxd7 {[%clk 0:00:16]} 37. Ng4 {[%clk 0:01:04]}  d2 {[%clk 0:00:16]} 38. Nf2 {[%clk 0:01:00]}  Ne3+ {[%clk 0:00:17]} 39. Kf3 {[%clk 0:01:00]}  d1=Q+ {[%clk 0:00:17]} 40. Nxd1 {[%clk 0:01:00]}  Nxd1 {[%clk 0:00:18]} 41. Ke2 {[%clk 0:01:00]}  Nb2 {[%clk 0:00:19]} 42. Bc3+ {[%clk 0:01:00]}  Kf7 {[%clk 0:00:17]} 43. Bxb2 {[%clk 0:01:01]}  Ke6 {[%clk 0:00:17]} 44. Kd3 {[%clk 0:01:00]}  Kd5 {[%clk 0:00:17]} 45. Bd4 {[%clk 0:00:59]}  Nb8 {[%clk 0:00:17]} 46. a4 {[%clk 0:00:58]}  Nc6 {[%clk 0:00:17]} 47. Bb6 {[%clk 0:00:58]}  Ne5+ {[%clk 0:00:17]} 48. Kc3 {[%clk 0:00:57]}  Ng4 {[%clk 0:00:16]} 49. Bg1 {[%clk 0:00:56]}  Ne5 {[%clk 0:00:15]} 50. Kb4 {[%clk 0:00:51]}  Nf3 {[%clk 0:00:14]} 51. Kb5 {[%clk 0:00:51]}  Nxg1 {[%clk 0:00:10]} 52. a5 {[%clk 0:00:51]}  Nf3 {[%clk 0:00:11]} 53. a6 {[%clk 0:00:51]}  Nd4+ {[%clk 0:00:12]} 54. Kb6 {[%clk 0:00:52]}  Nc6 {[%clk 0:00:11]} 55. Kb7 {[%clk 0:00:51]}  g5 {[%clk 0:00:08]} 56. g4 {[%clk 0:00:50]}  Kc5 {[%clk 0:00:05]} 57. h3 {[%clk 0:00:49]}  Kb5 {[%clk 0:00:04]} 58. Kc7 {[%clk 0:00:48]}  Kc5 {[%clk 0:00:00]} 59. Kb7 {[%clk 0:00:45]} 1-0


[Site "https://www.chess.com"]

[Event "Titled Tuesday Blitz May 9 Early 2023"]
[White "I_KID_you_not"]
[Black "Kleiman, Jake"]
[BlackFideId "2020041"]
[WhiteElo "2266"]
[BlackElo "2577"]
[Result "0-1"]
[Round "01"]
[TimeControl "180+2"]
[Date "2023.05.09"]
[WhiteClock "0:01:09"]
[BlackClock "0:01:21"]

1. e4 {[%clk 0:03:00]}  c5 {[%clk 0:02:57]} 2. Nc3 {[%clk 0:03:00]}  a6 {[%clk 0:02:56]} 3. Nge2 {[%clk 0:03:00]}  e6 {[%clk 0:02:56]} 4. g3 {[%clk 0:03:00]}  b5 {[%clk 0:02:55]} 5. Bg2 {[%clk 0:03:00]}  Bb7 {[%clk 0:02:56]} 6. d4 {[%clk 0:03:01]}  cxd4 {[%clk 0:02:55]} 7. Nxd4 {[%clk 0:03:02]}  Qc7 {[%clk 0:02:55]} 8. O-O {[%clk 0:03:01]}  Nc6 {[%clk 0:02:54]} 9. Nxc6 {[%clk 0:02:51]}  dxc6 {[%clk 0:02:53]} 10. Bf4 {[%clk 0:02:44]}  e5 {[%clk 0:02:53]} 11. Be3 {[%clk 0:02:44]}  Nf6 {[%clk 0:02:48]} 12. Qe2 {[%clk 0:02:32]}  Be7 {[%clk 0:02:44]} 13. f4 {[%clk 0:02:26]}  Bd6 {[%clk 0:02:32]} 14. Rad1 {[%clk 0:02:21]}  O-O-O {[%clk 0:02:26]} 15. a4 {[%clk 0:02:17]}  Qe7 {[%clk 0:02:19]} 16. axb5 {[%clk 0:01:46]}  axb5 {[%clk 0:02:19]} 17. Bh3+ {[%clk 0:01:24]}  Kb8 {[%clk 0:01:45]} 18. Qf2 {[%clk 0:01:24]}  Bc8 {[%clk 0:01:43]} 19. Ra1 {[%clk 0:01:22]}  Bxh3 {[%clk 0:01:39]} 20. Ba7+ {[%clk 0:01:11]}  Kc8 {[%clk 0:01:35]} 21. Qb6 {[%clk 0:01:11]}  Qb7 {[%clk 0:01:21]} 22. Qc7+ {[%clk 0:01:09]} 0-1


[Site "https://www.chess.com"]

[Event "Titled Tuesday Blitz May 9 Early 2023"]
[White "Semenenko, Dmytry"]
[Black "Munkhgal, Gombosuren"]
[WhiteFideId "14118645"]
[BlackFideId "4901266"]
[WhiteElo "2113"]
[BlackElo "2528"]
[Result "0-1"]
[Round "01"]
[TimeControl "180+2"]
[Date "2023.05.09"]
[WhiteClock "0:00:44"]
[BlackClock "0:02:03"]

1. Nf3 {[%clk 0:03:00]}  Nf6 {[%clk 0:02:59]} 2. c4 {[%clk 0:03:00]}  g6 {[%clk 0:03:00]} 3. d4 {[%clk 0:03:00]}  Bg7 {[%clk 0:03:00]} 4. Nc3 {[%clk 0:03:00]}  O-O {[%clk 0:03:01]} 5. e3 {[%clk 0:03:01]}  d6 {[%clk 0:03:01]} 6. Be2 {[%clk 0:03:02]}  Nc6 {[%clk 0:03:00]} 7. O-O {[%clk 0:03:02]}  e5 {[%clk 0:03:01]} 8. b3 {[%clk 0:03:01]}  exd4 {[%clk 0:02:59]} 9. exd4 {[%clk 0:03:00]}  d5 {[%clk 0:03:00]} 10. Bg5 {[%clk 0:02:58]}  dxc4 {[%clk 0:02:54]} 11. Bxc4 {[%clk 0:02:57]}  h6 {[%clk 0:02:53]} 12. Be3 {[%clk 0:02:52]}  Bg4 {[%clk 0:02:52]} 13. Qd2 {[%clk 0:02:39]}  Bxf3 {[%clk 0:02:50]} 14. gxf3 {[%clk 0:02:39]}  Kh7 {[%clk 0:02:49]} 15. Rad1 {[%clk 0:02:35]}  Ne7 {[%clk 0:02:48]} 16. Ne4 {[%clk 0:02:32]}  Nf5 {[%clk 0:02:49]} 17. Ng3 {[%clk 0:02:28]}  Nh4 {[%clk 0:02:48]} 18. Be2 {[%clk 0:02:26]}  Nd5 {[%clk 0:02:47]} 19. f4 {[%clk 0:02:12]}  Re8 {[%clk 0:02:41]} 20. f5 {[%clk 0:02:09]}  Qe7 {[%clk 0:02:29]} 21. fxg6+ {[%clk 0:02:06]}  fxg6 {[%clk 0:02:29]} 22. Rfe1 {[%clk 0:01:45]}  Qe6 {[%clk 0:02:23]} 23. Kh1 {[%clk 0:01:10]}  Qc6 {[%clk 0:02:03]} 24. Rc1 {[%clk 0:01:03]}  Nc3+ {[%clk 0:02:03]} 25. f3 {[%clk 0:01:00]}  Nxf3 {[%clk 0:02:04]} 26. Bxf3 {[%clk 0:00:59]}  Qxf3+ {[%clk 0:02:04]} 27. Kg1 {[%clk 0:00:52]}  Nd5 {[%clk 0:02:04]} 28. Bf2 {[%clk 0:00:48]}  Nf4 {[%clk 0:02:04]} 29. Be3 {[%clk 0:00:44]}  Nh3# {[%clk 0:02:03]} 0-1


[Site "https://www.chess.com"]

[Event "Titled Tuesday Blitz May 9 Early 2023"]
[White "Reprintsev, Alexander"]
[Black "Wessendorf, Thomas, Dr."]
[WhiteFideId "14100541"]
[BlackFideId "4604270"]
[WhiteElo "2218"]
[BlackElo "2280"]
[Result "1-0"]
[Round "01"]
[TimeControl "180+2"]
[Date "2023.05.09"]
[WhiteClock "0:01:35"]
[BlackClock "0:00:00"]

1. e4 {[%clk 0:02:57]}  c5 {[%clk 0:02:59]} 2. b3 {[%clk 0:02:56]}  Nc6 {[%clk 0:02:54]} 3. Bb2 {[%clk 0:02:56]}  d6 {[%clk 0:02:53]} 4. Bb5 {[%clk 0:02:55]}  Nf6 {[%clk 0:02:51]} 5. d3 {[%clk 0:02:51]}  e5 {[%clk 0:02:45]} 6. Ne2 {[%clk 0:02:50]}  Be7 {[%clk 0:02:45]} 7. O-O {[%clk 0:02:49]}  O-O {[%clk 0:02:44]} 8. Bxc6 {[%clk 0:02:49]}  bxc6 {[%clk 0:02:43]} 9. f4 {[%clk 0:02:48]}  Ng4 {[%clk 0:02:34]} 10. Qd2 {[%clk 0:02:45]}  exf4 {[%clk 0:02:24]} 11. Nxf4 {[%clk 0:02:43]}  Bg5 {[%clk 0:02:19]} 12. h3 {[%clk 0:02:38]}  Ne5 {[%clk 0:02:16]} 13. Qf2 {[%clk 0:02:38]}  a5 {[%clk 0:02:10]} 14. a4 {[%clk 0:02:37]}  Rb8 {[%clk 0:01:44]} 15. Nd2 {[%clk 0:02:36]}  Ng6 {[%clk 0:01:23]} 16. Nxg6 {[%clk 0:02:31]}  hxg6 {[%clk 0:01:19]} 17. Nc4 {[%clk 0:02:24]}  Be6 {[%clk 0:01:15]} 18. Bc3 {[%clk 0:02:22]}  Bxc4 {[%clk 0:01:01]} 19. dxc4 {[%clk 0:02:22]}  Qe7 {[%clk 0:00:55]} 20. Rae1 {[%clk 0:02:16]}  Ra8 {[%clk 0:00:51]} 21. Re2 {[%clk 0:02:16]}  Bh4 {[%clk 0:00:47]} 22. g3 {[%clk 0:02:15]}  Bg5 {[%clk 0:00:45]} 23. h4 {[%clk 0:02:15]}  Bh6 {[%clk 0:00:39]} 24. g4 {[%clk 0:02:15]}  f6 {[%clk 0:00:33]} 25. Rd1 {[%clk 0:02:07]}  Rfe8 {[%clk 0:00:30]} 26. Qe1 {[%clk 0:02:06]}  Bf4 {[%clk 0:00:28]} 27. Bxa5 {[%clk 0:02:00]}  f5 {[%clk 0:00:27]} 28. Bd2 {[%clk 0:01:56]}  Bxd2 {[%clk 0:00:23]} 29. Rexd2 {[%clk 0:01:56]}  fxe4 {[%clk 0:00:21]} 30. Rxd6 {[%clk 0:01:54]}  Qe5 {[%clk 0:00:19]} 31. Kg2 {[%clk 0:01:51]}  e3 {[%clk 0:00:19]} 32. Qg3 {[%clk 0:01:50]}  Qe4+ {[%clk 0:00:18]} 33. Qf3 {[%clk 0:01:50]}  Qxc2+ {[%clk 0:00:18]} 34. Kg3 {[%clk 0:01:48]}  e2 {[%clk 0:00:18]} 35. Re1 {[%clk 0:01:48]}  Qe4 {[%clk 0:00:13]} 36. Qxe4 {[%clk 0:01:47]}  Rxe4 {[%clk 0:00:13]} 37. Kf3 {[%clk 0:01:47]}  Rae8 {[%clk 0:00:13]} 38. Rxc6 {[%clk 0:01:45]}  Re3+ {[%clk 0:00:13]} 39. Kf2 {[%clk 0:01:45]}  R3e4 {[%clk 0:00:11]} 40. Rxg6 {[%clk 0:01:43]}  Rf4+ {[%clk 0:00:09]} 41. Kg2 {[%clk 0:01:43]}  Rd4 {[%clk 0:00:07]} 42. Rg5 {[%clk 0:01:40]}  Rd3 {[%clk 0:00:02]} 43. Rxc5 {[%clk 0:01:37]}  Rxb3 {[%clk 0:00:02]} 44. a5 {[%clk 0:01:36]}  Ra3 {[%clk 0:00:00]} 45. Kf2 {[%clk 0:01:35]} 1-0


[Site "https://www.chess.com"]

[Event "Titled Tuesday Blitz May 9 Early 2023"]
[White "Nugumanov, Bakhtiyar"]
[Black "Lorenzo De La Riva, Lazaro"]
[WhiteFideId "13701797"]
[BlackFideId "2268809"]
[WhiteElo "2209"]
[BlackElo "2294"]
[Result "0-1"]
[Round "01"]
[TimeControl "180+2"]
[Date "2023.05.09"]
[WhiteClock "0:00:42"]
[BlackClock "0:00:19"]

1. Nf3 {[%clk 0:02:54]}  Nf6 {[%clk 0:02:56]} 2. c4 {[%clk 0:02:53]}  d5 {[%clk 0:02:56]} 3. cxd5 {[%clk 0:02:53]}  c6 {[%clk 0:02:56]} 4. dxc6 {[%clk 0:02:50]}  Nxc6 {[%clk 0:02:57]} 5. d4 {[%clk 0:02:48]}  Bf5 {[%clk 0:02:57]} 6. Nc3 {[%clk 0:02:45]}  e6 {[%clk 0:02:48]} 7. g3 {[%clk 0:02:34]}  Bb4 {[%clk 0:02:32]} 8. Bg2 {[%clk 0:02:34]}  Qa5 {[%clk 0:02:29]} 9. O-O {[%clk 0:02:29]}  O-O-O {[%clk 0:02:19]} 10. a3 {[%clk 0:02:18]}  Bxc3 {[%clk 0:02:14]} 11. bxc3 {[%clk 0:02:19]}  Qxc3 {[%clk 0:02:14]} 12. Bd2 {[%clk 0:02:20]}  Qc2 {[%clk 0:02:06]} 13. Qe1 {[%clk 0:02:09]}  Be4 {[%clk 0:01:56]} 14. Rc1 {[%clk 0:01:55]}  Qa4 {[%clk 0:01:56]} 15. Ne5 {[%clk 0:01:52]}  Bxg2 {[%clk 0:01:50]} 16. Kxg2 {[%clk 0:01:53]}  Rxd4 {[%clk 0:01:25]} 17. Nxc6 {[%clk 0:01:53]}  bxc6 {[%clk 0:01:24]} 18. Be3 {[%clk 0:01:48]}  Rd5 {[%clk 0:01:18]} 19. Qc3 {[%clk 0:01:44]}  Kd7 {[%clk 0:01:13]} 20. f3 {[%clk 0:01:29]}  Rb8 {[%clk 0:01:07]} 21. Rb1 {[%clk 0:01:26]}  Rbb5 {[%clk 0:01:04]} 22. Bf2 {[%clk 0:01:18]}  a6 {[%clk 0:00:37]} 23. Rbc1 {[%clk 0:01:18]}  Rb3 {[%clk 0:00:33]} 24. Qe3 {[%clk 0:01:13]}  Rxe3 {[%clk 0:00:27]} 25. Bxe3 {[%clk 0:01:13]}  Qxa3 {[%clk 0:00:26]} 26. Bf2 {[%clk 0:01:08]}  Qd6 {[%clk 0:00:25]} 27. e4 {[%clk 0:01:06]}  Rd2 {[%clk 0:00:23]} 28. Kg1 {[%clk 0:01:05]}  Qd3 {[%clk 0:00:22]} 29. Rc5 {[%clk 0:01:00]}  Qxf3 {[%clk 0:00:20]} 30. Ra5 {[%clk 0:00:58]}  Ng4 {[%clk 0:00:19]} 31. Bc5 {[%clk 0:00:42]}  Qg2# {[%clk 0:00:19]} 0-1


[Site "https://www.chess.com"]

[Event "Titled Tuesday Blitz May 9 Early 2023"]
[White "Potapova, Margarita"]
[Black "Nissinen, Niilo Man"]
[WhiteFideId "14126869"]
[BlackFideId "30950767"]
[WhiteElo "2244"]
[BlackElo "1952"]
[Result "0-1"]
[Round "01"]
[TimeControl "180+2"]
[Date "2023.05.09"]
[WhiteClock "0:00:26"]
[BlackClock "0:00:07"]

1. d4 {[%clk 0:03:00]}  Nf6 {[%clk 0:02:56]} 2. Bf4 {[%clk 0:03:01]}  d5 {[%clk 0:02:55]} 3. e3 {[%clk 0:03:01]}  c5 {[%clk 0:02:55]} 4. dxc5 {[%clk 0:03:02]}  Nc6 {[%clk 0:02:55]} 5. Bb5 {[%clk 0:03:02]}  Ne4 {[%clk 0:02:34]} 6. b4 {[%clk 0:02:52]}  e6 {[%clk 0:01:49]} 7. f3 {[%clk 0:02:41]}  Qf6 {[%clk 0:01:45]} 8. Qd4 {[%clk 0:02:40]}  Qg6 {[%clk 0:00:59]} 9. g3 {[%clk 0:02:21]}  Nf6 {[%clk 0:00:47]} 10. Bxc6+ {[%clk 0:02:20]}  bxc6 {[%clk 0:00:47]} 11. Qd3 {[%clk 0:02:21]}  Nd7 {[%clk 0:00:42]} 12. e4 {[%clk 0:02:10]}  a5 {[%clk 0:00:33]} 13. c3 {[%clk 0:02:00]}  Ba6 {[%clk 0:00:26]} 14. Qc2 {[%clk 0:02:00]}  Be7 {[%clk 0:00:21]} 15. Nd2 {[%clk 0:01:57]}  Bf6 {[%clk 0:00:19]} 16. Rb1 {[%clk 0:01:58]}  axb4 {[%clk 0:00:16]} 17. cxb4 {[%clk 0:01:59]}  Bb5 {[%clk 0:00:16]} 18. Ne2 {[%clk 0:01:55]}  O-O {[%clk 0:00:15]} 19. Nc3 {[%clk 0:01:50]}  Bxc3 {[%clk 0:00:13]} 20. Qxc3 {[%clk 0:01:51]}  Rxa2 {[%clk 0:00:13]} 21. Kf2 {[%clk 0:01:42]}  e5 {[%clk 0:00:13]} 22. Qb3 {[%clk 0:01:28]}  Rfa8 {[%clk 0:00:11]} 23. exd5 {[%clk 0:01:15]}  exf4 {[%clk 0:00:11]} 24. Rb2 {[%clk 0:01:15]}  R2a3 {[%clk 0:00:09]} 25. Qc2 {[%clk 0:01:06]}  Bd3 {[%clk 0:00:07]} 26. Qc1 {[%clk 0:01:02]}  cxd5 {[%clk 0:00:05]} 27. c6 {[%clk 0:01:02]}  Nb6 {[%clk 0:00:04]} 28. c7 {[%clk 0:01:02]}  Nc4 {[%clk 0:00:04]} 29. Nxc4 {[%clk 0:01:01]}  fxg3+ {[%clk 0:00:03]} 30. hxg3 {[%clk 0:01:00]}  Bxc4 {[%clk 0:00:02]} 31. b5 {[%clk 0:00:51]}  Qb6+ {[%clk 0:00:03]} 32. Kg2 {[%clk 0:00:49]}  Qxc7 {[%clk 0:00:03]} 33. b6 {[%clk 0:00:50]}  Qb7 {[%clk 0:00:03]} 34. Re1 {[%clk 0:00:47]}  Ra2 {[%clk 0:00:03]} 35. Kg1 {[%clk 0:00:43]}  h6 {[%clk 0:00:03]} 36. Rxa2 {[%clk 0:00:32]}  Rxa2 {[%clk 0:00:03]} 37. Qe3 {[%clk 0:00:33]}  Kh7 {[%clk 0:00:03]} 38. Rb1 {[%clk 0:00:31]}  d4 {[%clk 0:00:03]} 39. Qe4+ {[%clk 0:00:24]}  Qxe4 {[%clk 0:00:03]} 40. fxe4 {[%clk 0:00:25]}  Ra8 {[%clk 0:00:03]} 41. Rb4 {[%clk 0:00:23]}  Be6 {[%clk 0:00:03]} 42. Rxd4 {[%clk 0:00:23]}  Rb8 {[%clk 0:00:03]} 43. Rb4 {[%clk 0:00:24]}  Kg6 {[%clk 0:00:04]} 44. Kf2 {[%clk 0:00:24]}  Kf6 {[%clk 0:00:04]} 45. Kf3 {[%clk 0:00:25]}  Ke5 {[%clk 0:00:05]} 46. Rb5+ {[%clk 0:00:25]}  Kd6 {[%clk 0:00:05]} 47. Kf4 {[%clk 0:00:25]}  Kc6 {[%clk 0:00:05]} 48. Rb2 {[%clk 0:00:24]}  Rxb6 {[%clk 0:00:06]} 49. Rc2+ {[%clk 0:00:25]}  Kd7 {[%clk 0:00:07]} 50. Rd2+ {[%clk 0:00:25]}  Ke7 {[%clk 0:00:07]} 51. Ra2 {[%clk 0:00:26]}  Rb7 {[%clk 0:00:07]} 52. Ra7 {[%clk 0:00:26]}  Rxa7 {[%clk 0:00:07]} 0-1


[Site "https://www.chess.com"]